Workbook

Sheet советы
A1: СОВЕТЫ ПО ШАБЛОНАМ
A2: Можно ли быстро переходить между сводным листом "Тенденции расходов" и сведениями о месячных расходах?
A3: Чтобы быстро перейти к расходам за определенный месяц, щелкните ссылку навигации над диаграммой, например ссылку Янв в ячейке B2. Чтобы вернуться к листу "Тенденции расходов", щелкните ссылку Сводка в ячейке D1.
A4: Чтобы вернуться к этому листу советов, выберите ячейку N2 в сводном листе. Во всех листах по месяцам выберите ячейку E1.
A5: Как добавить новый тип расходов в лист "Сводка расходов" или в новые месячные расходы?
A6: Сводка расходов под диаграммой и сведения о расходах за каждый месяц являются таблицами Excel. Чтобы добавить новые строки в любую таблицу Excel, выполните одно из указанных ниже действий.
A7: =ROW(A1)&". Если в таблице нет строки итогов, начинайте вводить текст под таблицей, и она автоматически расширится после нажатия клавиши ВВОД или TAB." -> 1. Если в таблице нет строки итогов, начинайте вводить текст под таблицей, и она автоматически расширится после нажатия клавиши ВВОД или TAB.
A8: =ROW(A2)&". Поместите указатель ячейки в последнюю ячейку над строкой итогов, например для итогового значения последних расходов, и нажмите клавишу TAB." -> 2. Поместите указатель ячейки в последнюю ячейку над строкой итогов, например для итогового значения последних расходов, и нажмите клавишу TAB.
A9: =ROW(A3)&". Щелкните правой кнопкой мыши в таблице и во всплывающем меню наведите указатель на пункт ""Вставить"", а затем выберите ""Строки таблицы выше"" или ""Строки таблицы ниже""." -> 3. Щелкните правой кнопкой мыши в таблице и во всплывающем меню наведите указатель на пункт "Вставить", а затем выберите "Строки таблицы выше" или "Строки таблицы ниже".
A10: =ROW(A4)&". В правом нижнем углу таблицы поместите указатель мыши на маркер изменения размера таблицы и перетащите его вниз, чтобы увеличить количество доступных строк." -> 4. В правом нижнем углу таблицы поместите указатель мыши на маркер изменения размера таблицы и перетащите его вниз, чтобы увеличить количество доступных строк.
A11: Введите сведения о расходах в столбец Расходы в листе Сводка таблицы СводкаРасходов.
A12: Добавьте сумму для каждого типа расходов на листе за месяц, к которому относятся эти расходы.
A13: Например: "Расход 1" происходит с января по июнь и в декабре.
A14: =ROW(A1)&". Расход 1 вводится в сводном листе в разделе ""Расходы"" таблицы ""СводкаРасходов"" (как название типа расходов)." -> 1. Расход 1 вводится в сводном листе в разделе "Расходы" таблицы "СводкаРасходов" (как название типа расходов).
A15: =ROW(A2)&". Введите сумму расхода в соответствующих листах за те месяцы, в которых происходит расход." -> 2. Введите сумму расхода в соответствующих листах за те месяцы, в которых происходит расход.
A16: =ROW(A3)&". На основе типа расходов из листа ""СводкаРасходов"" создается список категорий для столбца ""Категория"" в листах за каждый месяц." -> 3. На основе типа расходов из листа "СводкаРасходов" создается список категорий для столбца "Категория" в листах за каждый месяц.
A17: =ROW(A4)&". Используя список категорий в столбце ""Категория"", выберите соответствующий тип расходов для введенной суммы." -> 4. Используя список категорий в столбце "Категория", выберите соответствующий тип расходов для введенной суммы.
A18: =ROW(A5)&". Чтобы добавить новые расходы за любой месяц, добавьте новую строку в таблицу ""СводкаРасходов"" в сводном листе, а затем введите соответствующие сведения о расходах в листе за тот месяц, к которому эти расходы относятся." -> 5. Чтобы добавить новые расходы за любой месяц, добавьте новую строку в таблицу "СводкаРасходов" в сводном листе, а затем введите соответствующие сведения о расходах в листе за тот месяц, к которому эти расходы относятся.

Sheet сводка
A1: ТЕНДЕНЦИИ РАСХОДОВ
B2: Январь | C2: Февраль | D2: Март | E2: Апрель | F2: Май | G2: Июнь | H2: Июль | I2: Август | J2: Сентябрь | K2: Октябрь | L2: Ноябрь | M2: Декабрь | N2: Советы
A4: Расходы | B4: Январь | C4: Февраль | D4: Март | E4: Апрель | F4: Май | G4: Июнь | H4: Июль | I4: Август | J4: Сентябрь | K4: Октябрь | L4: Ноябрь | M4: Декабрь | N4: Итог | O4: Тенденции
A5: Расход 1 | B5: =SUMIFS(РасхЯнв[Сумма], РасхЯнв[Категория], СводкаРасходов[[#This Row],[Расходы]]) -> 33.00 | C5: =SUMIFS(РасхФев[Сумма], РасхФев[Категория], СводкаРасходов[[#This Row],[Расходы]]) -> 375.00 | D5: =SUMIFS(РасхМар[Сумма], РасхМар[Категория], СводкаРасходов[[#This Row],[Расходы]]) -> 33.00 | E5: =SUMIFS(РасхАпр[Сумма], РасхАпр[Категория], СводкаРасходов[[#This Row],[Расходы]]) -> 45.00 | F5: =SUMIFS(РасхМай[Сумма], РасхМай[Категория], СводкаРасходов[[#This Row],[Расходы]]) -> 375.00 | G5: =SUMIFS(РасхИюн[Сумма], РасхИюн[Категория], СводкаРасходов[[#This Row],[Расходы]]) -> 201.00 | H5: =SUMIFS(РасхИюл[Сумма], РасхИюл[Категория], СводкаРасходов[[#This Row],[Расходы]]) -> 0.00 | I5: =SUMIFS(РасхАвг[Сумма], РасхАвг[Категория], СводкаРасходов[[#This Row],[Расходы]]) -> 0.00 | J5: =SUMIFS(РасхСен[Сумма], РасхСен[Категория], СводкаРасходов[[#This Row],[Расходы]]) -> 0.00 | K5: =SUMIFS(РасхОкт[Сумма], РасхОкт[Категория], СводкаРасходов[[#This Row],[Расходы]]) -> 0.00 | L5: =SUMIFS(РасхНоя[Сумма], РасхНоя[Категория], СводкаРасходов[[#This Row],[Расходы]]) -> 0.00 | M5: =SUMIFS(РасхДек[Сумма], РасхДек[Категория], СводкаРасходов[[#This Row],[Расходы]]) -> 201.00 | N5: =SUM(СводкаРасходов[[#This Row],[Январь]:[Декабрь]]) -> 1,263.00
A6: Расход 2 | B6: =SUMIFS(РасхЯнв[Сумма], РасхЯнв[Категория], СводкаРасходов[[#This Row],[Расходы]]) -> 238.00 | C6: =SUMIFS(РасхФев[Сумма], РасхФев[Категория], СводкаРасходов[[#This Row],[Расходы]]) -> 238.00 | D6: =SUMIFS(РасхМар[Сумма], РасхМар[Категория], СводкаРасходов[[#This Row],[Расходы]]) -> 238.00 | E6: =SUMIFS(РасхАпр[Сумма], РасхАпр[Категория], СводкаРасходов[[#This Row],[Расходы]]) -> 123.00 | F6: =SUMIFS(РасхМай[Сумма], РасхМай[Категория], СводкаРасходов[[#This Row],[Расходы]]) -> 111.00 | G6: =SUMIFS(РасхИюн[Сумма], РасхИюн[Категория], СводкаРасходов[[#This Row],[Расходы]]) -> 98.00 | H6: =SUMIFS(РасхИюл[Сумма], РасхИюл[Категория], СводкаРасходов[[#This Row],[Расходы]]) -> 0.00 | I6: =SUMIFS(РасхАвг[Сумма], РасхАвг[Категория], СводкаРасходов[[#This Row],[Расходы]]) -> 0.00 | J6: =SUMIFS(РасхСен[Сумма], РасхСен[Категория], СводкаРасходов[[#This Row],[Расходы]]) -> 0.00 | K6: =SUMIFS(РасхОкт[Сумма], РасхОкт[Категория], СводкаРасходов[[#This Row],[Расходы]]) -> 0.00 | L6: =SUMIFS(РасхНоя[Сумма], РасхНоя[Категория], СводкаРасходов[[#This Row],[Расходы]]) -> 0.00 | M6: =SUMIFS(РасхДек[Сумма], РасхДек[Категория], СводкаРасходов[[#This Row],[Расходы]]) -> 440.00 | N6: =SUM(СводкаРасходов[[#This Row],[Январь]:[Декабрь]]) -> 1,486.00
A7: Расход 3 | B7: =SUMIFS(РасхЯнв[Сумма], РасхЯнв[Категория], СводкаРасходов[[#This Row],[Расходы]]) -> 110.00 | C7: =SUMIFS(РасхФев[Сумма], РасхФев[Категория], СводкаРасходов[[#This Row],[Расходы]]) -> 110.00 | D7: =SUMIFS(РасхМар[Сумма], РасхМар[Категория], СводкаРасходов[[#This Row],[Расходы]]) -> 110.00 | E7: =SUMIFS(РасхАпр[Сумма], РасхАпр[Категория], СводкаРасходов[[#This Row],[Расходы]]) -> 125.00 | F7: =SUMIFS(РасхМай[Сумма], РасхМай[Категория], СводкаРасходов[[#This Row],[Расходы]]) -> 333.00 | G7: =SUMIFS(РасхИюн[Сумма], РасхИюн[Категория], СводкаРасходов[[#This Row],[Расходы]]) -> 122.00 | H7: =SUMIFS(РасхИюл[Сумма], РасхИюл[Категория], СводкаРасходов[[#This Row],[Расходы]]) -> 0.00 | I7: =SUMIFS(РасхАвг[Сумма], РасхАвг[Категория], СводкаРасходов[[#This Row],[Расходы]]) -> 0.00 | J7: =SUMIFS(РасхСен[Сумма], РасхСен[Категория], СводкаРасходов[[#This Row],[Расходы]]) -> 0.00 | K7: =SUMIFS(РасхОкт[Сумма], РасхОкт[Категория], СводкаРасходов[[#This Row],[Расходы]]) -> 0.00 | L7: =SUMIFS(РасхНоя[Сумма], РасхНоя[Категория], СводкаРасходов[[#This Row],[Расходы]]) -> 0.00 | M7: =SUMIFS(РасхДек[Сумма], РасхДек[Категория], СводкаРасходов[[#This Row],[Расходы]]) -> 122.00 | N7: =SUM(СводкаРасходов[[#This Row],[Январь]:[Декабрь]]) -> 1,032.00
A8: Расход 4 | B8: =SUMIFS(РасхЯнв[Сумма], РасхЯнв[Категория], СводкаРасходов[[#This Row],[Расходы]]) -> 426.00 | C8: =SUMIFS(РасхФев[Сумма], РасхФев[Категория], СводкаРасходов[[#This Row],[Расходы]]) -> 84.00 | D8: =SUMIFS(РасхМар[Сумма], РасхМар[Категория], СводкаРасходов[[#This Row],[Расходы]]) -> 84.00 | E8: =SUMIFS(РасхАпр[Сумма], РасхАпр[Категория], СводкаРасходов[[#This Row],[Расходы]]) -> 426.00 | F8: =SUMIFS(РасхМай[Сумма], РасхМай[Категория], СводкаРасходов[[#This Row],[Расходы]]) -> 125.00 | G8: =SUMIFS(РасхИюн[Сумма], РасхИюн[Категория], СводкаРасходов[[#This Row],[Расходы]]) -> 187.00 | H8: =SUMIFS(РасхИюл[Сумма], РасхИюл[Категория], СводкаРасходов[[#This Row],[Расходы]]) -> 0.00 | I8: =SUMIFS(РасхАвг[Сумма], РасхАвг[Категория], СводкаРасходов[[#This Row],[Расходы]]) -> 0.00 | J8: =SUMIFS(РасхСен[Сумма], РасхСен[Категория], СводкаРасходов[[#This Row],[Расходы]]) -> 0.00 | K8: =SUMIFS(РасхОкт[Сумма], РасхОкт[Категория], СводкаРасходов[[#This Row],[Расходы]]) -> 0.00 | L8: =SUMIFS(РасхНоя[Сумма], РасхНоя[Категория], СводкаРасходов[[#This Row],[Расходы]]) -> 0.00 | M8: =SUMIFS(РасхДек[Сумма], РасхДек[Категория], СводкаРасходов[[#This Row],[Расходы]]) -> 187.00 | N8: =SUM(СводкаРасходов[[#This Row],[Январь]:[Декабрь]]) -> 1,519.00
A9: Расход 5 | B9: =SUMIFS(РасхЯнв[Сумма], РасхЯнв[Категория], СводкаРасходов[[#This Row],[Расходы]]) -> 54.00 | C9: =SUMIFS(РасхФев[Сумма], РасхФев[Категория], СводкаРасходов[[#This Row],[Расходы]]) -> 54.00 | D9: =SUMIFS(РасхМар[Сумма], РасхМар[Категория], СводкаРасходов[[#This Row],[Расходы]]) -> 109.00 | E9: =SUMIFS(РасхАпр[Сумма], РасхАпр[Категория], СводкаРасходов[[#This Row],[Расходы]]) -> 98.00 | F9: =SUMIFS(РасхМай[Сумма], РасхМай[Категория], СводкаРасходов[[#This Row],[Расходы]]) -> 33.00 | G9: =SUMIFS(РасхИюн[Сумма], РасхИюн[Категория], СводкаРасходов[[#This Row],[Расходы]]) -> 441.00 | H9: =SUMIFS(РасхИюл[Сумма], РасхИюл[Категория], СводкаРасходов[[#This Row],[Расходы]]) -> 0.00 | I9: =SUMIFS(РасхАвг[Сумма], РасхАвг[Категория], СводкаРасходов[[#This Row],[Расходы]]) -> 0.00 | J9: =SUMIFS(РасхСен[Сумма], РасхСен[Категория], СводкаРасходов[[#This Row],[Расходы]]) -> 0.00 | K9: =SUMIFS(РасхОкт[Сумма], РасхОкт[Категория], СводкаРасходов[[#This Row],[Расходы]]) -> 0.00 | L9: =SUMIFS(РасхНоя[Сумма], РасхНоя[Категория], СводкаРасходов[[#This Row],[Расходы]]) -> 0.00 | M9: =SUMIFS(РасхДек[Сумма], РасхДек[Категория], СводкаРасходов[[#This Row],[Расходы]]) -> 99.00 | N9: =SUM(СводкаРасходов[[#This Row],[Январь]:[Декабрь]]) -> 888.00
A10: Итог | B10: =SUBTOTAL(109,СводкаРасходов[Январь]) -> 861.00 | C10: =SUBTOTAL(109,СводкаРасходов[Февраль]) -> 861.00 | D10: =SUBTOTAL(109,СводкаРасходов[Март]) -> 574.00 | E10: =SUBTOTAL(109,СводкаРасходов[Апрель]) -> 817.00 | F10: =SUBTOTAL(109,СводкаРасходов[Май]) -> 977.00 | G10: =SUBTOTAL(109,СводкаРасходов[Июнь]) -> 1,049.00 | H10: =SUBTOTAL(109,СводкаРасходов[Июль]) -> 0.00 | I10: =SUBTOTAL(109,СводкаРасходов[Август]) -> 0.00 | J10: =SUBTOTAL(109,СводкаРасходов[Сентябрь]) -> 0.00 | K10: =SUBTOTAL(109,СводкаРасходов[Октябрь]) -> 0.00 | L10: =SUBTOTAL(109,СводкаРасходов[Ноябрь]) -> 0.00 | M10: =SUBTOTAL(109,СводкаРасходов[Декабрь]) -> 1,049.00 | N10: =SUBTOTAL(109,СводкаРасходов[Итог]) -> 6,188.00

Sheet янв
A1: РАСХОДЫ ЗА ЯНВАРЬ | D1: Сводка | E1: Советы
A2: Дата | B2: № ЗАКАЗА НА ПОКУПКУ | C2: Сумма | D2: Категория | E2: Описание
A3: =DATE(YEAR(TODAY()),1,4) -> 2017-01-04 | B3: A-12345 | C3: 33.00 | D3: Расход 1 | E3: Поставки
A4: =DATE(YEAR(TODAY()),1,5) -> 2017-01-05 | B4: A-12346 | C4: 238.00 | D4: Расход 2
C5: 342.00 | D5: Расход 4
C6: 110.00 | D6: Расход 3
C7: 84.00 | D7: Расход 4
C8: 54.00 | D8: Расход 5
A9: Итог | C9: =SUBTOTAL(109,РасхЯнв[Сумма]) -> 861.00

Sheet фев
A1: РАСХОДЫ ЗА ФЕВРАЛЬ | D1: Сводка | E1: Советы
A2: Дата | B2: № ЗАКАЗА НА ПОКУПКУ | C2: Сумма | D2: Категория | E2: Описание
A3: =DATE(YEAR(TODAY()),2,3) -> 2017-02-03 | B3: A-12345 | C3: 33.00 | D3: Расход 1 | E3: Поставки
A4: =DATE(YEAR(TODAY()),2,4) -> 2017-02-04 | B4: A-12346 | C4: 238.00 | D4: Расход 2
C5: 342.00 | D5: Расход 1
C6: 110.00 | D6: Расход 3
C7: 84.00 | D7: Расход 4
C8: 54.00 | D8: Расход 5
A9: Итог | C9: =SUBTOTAL(109,РасхФев[Сумма]) -> 861.00

Sheet мар
A1: РАСХОДЫ ЗА МАРТ | D1: Сводка | E1: Советы
A2: Дата | B2: № ЗАКАЗА НА ПОКУПКУ | C2: Сумма | D2: Категория | E2: Описание
A3: =DATE(YEAR(TODAY()),3,5) -> 2017-03-05 | B3: A-12345 | C3: 33.00 | D3: Расход 1 | E3: Поставки
A4: =DATE(YEAR(TODAY()),3,6) -> 2017-03-06 | B4: A-12346 | C4: 238.00 | D4: Расход 2
C5: 55.00 | D5: Расход 5
C6: 110.00 | D6: Расход 3
C7: 84.00 | D7: Расход 4
C8: 54.00 | D8: Расход 5
A9: Итог | C9: =SUBTOTAL(109,РасхМар[Сумма]) -> 574.00

Sheet апр
A1: РАСХОДЫ ЗА АПРЕЛЬ | D1: Сводка | E1: Советы
A2: Дата | B2: № ЗАКАЗА НА ПОКУПКУ | C2: Сумма | D2: Категория | E2: Описание
A3: =DATE(YEAR(TODAY()),4,4) -> 2017-04-04 | B3: A-12345 | C3: 45.00 | D3: Расход 1 | E3: Поставки
A4: =DATE(YEAR(TODAY()),4,8) -> 2017-04-08 | B4: A-12346 | C4: 123.00 | D4: Расход 2
C5: 342.00 | D5: Расход 4
C6: 125.00 | D6: Расход 3
C7: 84.00 | D7: Расход 4
C8: 98.00 | D8: Расход 5
A9: Итог | C9: =SUBTOTAL(109,РасхАпр[Сумма]) -> 817.00

Sheet май
A1: РАСХОДЫ ЗА МАЙ | D1: Сводка | E1: Советы
A2: Дата | B2: № ЗАКАЗА НА ПОКУПКУ | C2: Сумма | D2: Категория | E2: Описание
A3: =DATE(YEAR(TODAY()),5,3) -> 2017-05-03 | B3: A-12345 | C3: 33.00 | D3: Расход 1 | E3: Поставки
A4: =DATE(YEAR(TODAY()),5,8) -> 2017-05-08 | B4: A-12346 | C4: 111.00 | D4: Расход 2
C5: 342.00 | D5: Расход 1
C6: 333.00 | D6: Расход 3
C7: 125.00 | D7: Расход 4
C8: 33.00 | D8: Расход 5
A9: Итог | C9: =SUBTOTAL(109,РасхМай[Сумма]) -> 977.00

Sheet июн
A1: РАСХОДЫ ЗА ИЮНЬ | D1: Сводка | E1: Советы
A2: Дата | B2: № ЗАКАЗА НА ПОКУПКУ | C2: Сумма | D2: Категория | E2: Описание
A3: =DATE(YEAR(TODAY()),6,7) -> 2017-06-07 | B3: A-12345 | C3: 201.00 | D3: Расход 1 | E3: Поставки
A4: =DATE(YEAR(TODAY()),6,8) -> 2017-06-08 | B4: A-12346 | C4: 98.00 | D4: Расход 2
C5: 342.00 | D5: Расход 5
C6: 122.00 | D6: Расход 3
C7: 187.00 | D7: Расход 4
C8: 99.00 | D8: Расход 5
A9: Итог | C9: =SUBTOTAL(109,РасхИюн[Сумма]) -> 1,049.00

Sheet июл
A1: РАСХОДЫ ЗА ИЮЛЬ | D1: Сводка | E1: Советы
A2: Дата | B2: № ЗАКАЗА НА ПОКУПКУ | C2: Сумма | D2: Категория | E2: Описание
A3: =DATE(YEAR(TODAY()),7,9) -> 2017-07-09 | B3: A-12345 | D3: Расход 1 | E3: Поставки
A4: =DATE(YEAR(TODAY()),7,14) -> 2017-07-14 | B4: A-12346 | D4: Расход 2
D5: Расход 2
D6: Расход 3
D7: Расход 4
D8: Расход 5
A9: Итог | C9: =SUBTOTAL(109,РасхИюл[Сумма]) -> 0.00

Sheet авг
A1: РАСХОДЫ ЗА АВГУСТ | D1: Сводка | E1: Советы
A2: Дата | B2: № ЗАКАЗА НА ПОКУПКУ | C2: Сумма | D2: Категория | E2: Описание
A3: =DATE(YEAR(TODAY()),8,8) -> 2017-08-08 | B3: A-12345 | D3: Расход 1 | E3: Поставки
A4: =DATE(YEAR(TODAY()),8,9) -> 2017-08-09 | B4: A-12346 | D4: Расход 2
D5: Расход 2
D6: Расход 3
D7: Расход 4
D8: Расход 5
A9: Итог | C9: =SUBTOTAL(109,РасхАвг[Сумма]) -> 0.00

Sheet сен
A1: РАСХОДЫ ЗА СЕНТЯБРЬ | D1: Сводка | E1: Советы
A2: Дата | B2: № ЗАКАЗА НА ПОКУПКУ | C2: Сумма | D2: Категория | E2: Описание
A3: =DATE(YEAR(TODAY()),9,9) -> 2017-09-09 | B3: A-12345 | D3: Расход 1 | E3: Поставки
A4: =DATE(YEAR(TODAY()),9,15) -> 2017-09-15 | B4: A-12346 | D4: Расход 2
D5: Расход 2
D6: Расход 3
D7: Расход 4
D8: Расход 5
A9: Итог | C9: =SUBTOTAL(109,РасхСен[Сумма]) -> 0.00

Sheet окт
A1: РАСХОДЫ ЗА ОКТЯБРЬ | D1: Сводка | E1: Советы
A2: Дата | B2: № ЗАКАЗА НА ПОКУПКУ | C2: Сумма | D2: Категория | E2: Описание
A3: =DATE(YEAR(TODAY()),10,10) -> 2017-10-10 | B3: A-12345 | D3: Расход 1 | E3: Поставки
A4: =DATE(YEAR(TODAY()),10,21) -> 2017-10-21 | B4: A-12346 | D4: Расход 2
D5: Расход 2
D6: Расход 3
D7: Расход 4
D8: Расход 5
A9: Итог | C9: =SUBTOTAL(109,РасхОкт[Сумма]) -> 0.00

Sheet ноя
A1: РАСХОДЫ ЗА НОЯБРЬ | D1: Сводка | E1: Советы
A2: Дата | B2: № ЗАКАЗА НА ПОКУПКУ | C2: Сумма | D2: Категория | E2: Описание
A3: =DATE(YEAR(TODAY()),11,14) -> 2017-11-14 | B3: A-12345 | D3: Расход 1 | E3: Поставки
A4: =DATE(YEAR(TODAY()),11,21) -> 2017-11-21 | B4: A-12346 | D4: Расход 2
D5: Расход 2
D6: Расход 3
D7: Расход 4
D8: Расход 5
A9: Итог | C9: =SUBTOTAL(109,РасхНоя[Сумма]) -> 0.00

Sheet дек
A1: РАСХОДЫ ЗА ДЕКАБРЬ | D1: Сводка | E1: Советы
A2: Дата | B2: № ЗАКАЗА НА ПОКУПКУ | C2: Сумма | D2: Категория | E2: Описание
A3: =DATE(YEAR(TODAY()),12,2) -> 2017-12-02 | B3: A-12345 | C3: 201.00 | D3: Расход 1 | E3: Поставки
A4: =DATE(YEAR(TODAY()),12,24) -> 2017-12-24 | B4: A-12346 | C4: 98.00 | D4: Расход 2
C5: 342.00 | D5: Расход 2
C6: 122.00 | D6: Расход 3
C7: 187.00 | D7: Расход 4
C8: 99.00 | D8: Расход 5
A9: Итог | C9: =SUBTOTAL(109,РасхДек[Сумма]) -> 1,049.00
